[Event "Pervenstvo PFO 2023_Y19_Rapid"]
[Site "Samara region, Russia"]
[Date "2023.11.11"]
[Round "4.1"]
[White "Babkov, Timofey"]
[Black "Lydin, Vladislav"]
[Result "0-1"]
[TimeControl "10:5"]
[WhiteFideId "54135931"]
[BlackFideId "44195990"]
[WhiteElo "1855"]
[BlackElo "2005"]

1. e4 {[%clk 00:10:09]} Nf6 {[%clk 00:10:09]} 2. e5 {[%clk 00:10:12]} {[%emt
00:00:03]} Nd5 {[%clk 00:10:13]} 3. c4 {[%clk 00:10:16]} {[%emt 00:00:01]} Nb6
{[%clk 00:10:17]} 4. a4 {[%clk 00:10:21]} d6 {[%clk 00:10:20]} {[%emt
00:00:02]} 5. a5 {[%clk 00:10:21]} {[%emt 00:00:05]} N6d7 {[%clk 00:10:24]} 6.
exd6 {[%clk 00:08:44]} {[%emt 00:01:43]} cxd6 {[%clk 00:10:28]} {[%emt
00:00:01]} 7. b4 {[%clk 00:08:33]} {[%emt 00:00:15]} Nf6 {[%clk 00:10:03]}
{[%emt 00:00:29]} 8. d4 {[%clk 00:07:51]} {[%emt 00:00:47]} g6 {[%clk
00:10:06]} {[%emt 00:00:03]} 9. Nf3 {[%clk 00:07:52]} {[%emt 00:00:04]} Bg7
{[%clk 00:10:10]} {[%emt 00:00:02]} 10. Be2 {[%clk 00:07:56]} {[%emt 00:00:01]}
O-O {[%clk 00:10:11]} {[%emt 00:00:03]} 11. O-O {[%clk 00:07:59]} {[%emt
00:00:01]} d5 {[%clk 00:10:03]} {[%emt 00:00:15]} 12. c5 {[%clk 00:07:50]}
{[%emt 00:00:14]} Ne4 {[%clk 00:10:00]} {[%emt 00:00:07]} 13. Qb3 {[%clk
00:07:33]} {[%emt 00:00:22]} Nc6 {[%clk 00:09:56]} {[%emt 00:00:09]} 14. Bb2
{[%clk 00:07:36]} {[%emt 00:00:03]} Bg4 {[%clk 00:09:08]} {[%emt 00:00:52]} 15.
Rd1 {[%clk 00:07:10]} {[%emt 00:00:31]} b6 {[%clk 00:07:46]} {[%emt 00:01:27]}
16. Nc3 {[%clk 00:04:21]} {[%emt 00:02:54]} bxa5 {[%clk 00:06:55]} {[%emt
00:00:56]} 17. b5 {[%clk 00:03:53]} {[%emt 00:00:34]} Bxf3 {[%clk 00:06:36]}
{[%emt 00:00:23]} 18. gxf3 {[%clk 00:01:50]} {[%emt 00:02:08]} Nxd4 {[%clk
00:06:17]} {[%emt 00:00:23]} 19. Rxd4 {[%clk 00:01:51]} {[%emt 00:00:04]} Nxc5
{[%clk 00:06:21]} {[%emt 00:00:02]} 20. Qd1 {[%clk 00:01:44]} {[%emt 00:00:12]}
Bxd4 {[%clk 00:06:21]} {[%emt 00:00:04]} 21. Qxd4 {[%clk 00:01:01]} {[%emt
00:00:49]} Nb3 {[%clk 00:06:26]} 22. Qe5 {[%clk 00:01:05]} Nxa1 {[%clk
00:06:00]} {[%emt 00:00:30]} 23. Nxd5 {[%clk 00:01:07]} {[%emt 00:00:03]} f6
{[%clk 00:06:03]} {[%emt 00:00:02]} 24. Qe6+ {[%clk 00:00:10]} {[%emt
00:01:02]} Kg7 {[%clk 00:06:02]} {[%emt 00:00:05]} 25. Bxa1 {[%clk 00:00:11]}
{[%emt 00:00:05]} Qd6 {[%clk 00:06:04]} {[%emt 00:00:02]} 26. Qxd6 {[%clk
00:00:07]} {[%emt 00:00:11]} exd6 {[%clk 00:06:08]} 27. Bc3 {[%clk 00:00:11]}
{[%emt 00:00:02]} a4 {[%clk 00:06:10]} {[%emt 00:00:02]} 28. Bd1 {[%clk
00:00:13]} {[%emt 00:00:04]} a3 {[%clk 00:06:11]} {[%emt 00:00:03]} 29. Bb3
{[%clk 00:00:17]} Rab8 {[%clk 00:06:12]} {[%emt 00:00:04]} 30. Nc7 {[%clk
00:00:19]} {[%emt 00:00:04]} Rfc8 {[%clk 00:05:16]} {[%emt 00:01:01]} 31. Ne6+
{[%clk 00:00:21]} {[%emt 00:00:02]} Kf7 {[%clk 00:05:17]} {[%emt 00:00:04]} 32.
Nf4+ {[%clk 00:00:06]} {[%emt 00:00:20]} Ke8 {[%clk 00:04:44]} {[%emt
00:00:38]} 33. Nd5 {[%clk 00:00:06]} {[%emt 00:00:05]} Rxb5 {[%clk 00:03:39]}
{[%emt 00:01:10]} 34. Ba4 {[%clk 00:00:10]} {[%emt 00:00:01]} a6 {[%clk
00:03:43]} 35. Kf1 {[%clk 00:00:06]} {[%emt 00:00:10]} a2 {[%clk 00:03:35]}
{[%emt 00:00:13]} 36. Bxf6 {[%clk 00:00:06]} {[%emt 00:00:05]} Kf7 {[%clk
00:03:15]} {[%emt 00:00:28]} 37. Bxb5 {[%clk 00:00:07]} {[%emt 00:00:12]} axb5
{[%clk 00:03:18]} {[%emt 00:00:03]} 38. Ke2 {[%clk 00:00:07]} {[%emt 00:00:05]}
Ke6 {[%clk 00:03:19]} {[%emt 00:00:03]} 0-1

[Event "Pervenstvo PFO 2023_Y19_Rapid"]
[Site "Samara region, Russia"]
[Date "2023.11.11"]
[Round "4.2"]
[White "Tarasenko, Iaroslav"]
[Black "Azizyan, Levon"]
[Result "1/2-1/2"]
[TimeControl "10:5"]
[WhiteFideId "44196008"]
[BlackFideId "44151888"]
[WhiteElo "2080"]
[BlackElo "1940"]

1. e4 {[%clk 00:10:10]} {[%emt 00:01:48]} c5 {[%clk 00:10:07]} {[%emt
00:00:03]} 2. Nf3 {[%clk 00:10:14]} d6 {[%clk 00:10:11]} {[%emt 00:00:02]} 3.
d4 {[%clk 00:10:18]} cxd4 {[%clk 00:10:14]} {[%emt 00:00:02]} 4. Nxd4 {[%clk
00:10:22]} {[%emt 00:00:01]} Nf6 {[%clk 00:10:18]} {[%emt 00:00:01]} 5. Nc3
{[%clk 00:10:22]} {[%emt 00:00:06]} Nc6 {[%clk 00:10:21]} {[%emt 00:00:01]} 6.
Nd5 {[%clk 00:10:25]} {[%emt 00:00:02]} Nxd5 {[%clk 00:10:23]} {[%emt
00:00:03]} 7. exd5 {[%clk 00:10:29]} Qa5+ {[%clk 00:10:28]} 8. Bd2 {[%clk
00:10:32]} {[%emt 00:00:02]} Qxd5 {[%clk 00:10:31]} {[%emt 00:00:01]} 9. Nb5
{[%clk 00:10:36]} Qe6+ {[%clk 00:10:35]} {[%emt 00:00:02]} 10. Be2 {[%clk
00:10:41]} Qd7 {[%clk 00:10:39]} 11. c4 {[%clk 00:10:42]} {[%emt 00:00:05]} a6
{[%clk 00:08:50]} {[%emt 00:01:55]} 12. Nc3 {[%clk 00:10:45]} e6 {[%clk
00:08:53]} {[%emt 00:00:02]} 13. Be3 {[%clk 00:10:35]} {[%emt 00:00:15]} Be7
{[%clk 00:08:45]} {[%emt 00:00:13]} 14. O-O {[%clk 00:09:53]} {[%emt 00:00:47]}
O-O {[%clk 00:08:39]} {[%emt 00:00:11]} 15. f4 {[%clk 00:09:58]} Qc7 {[%clk
00:07:45]} {[%emt 00:00:59]} 16. Rc1 {[%clk 00:09:53]} {[%emt 00:00:10]} Bd7
{[%clk 00:07:28]} {[%emt 00:00:22]} 17. f5 {[%clk 00:09:18]} {[%emt 00:00:40]}
Ne5 {[%clk 00:07:07]} {[%emt 00:00:27]} 18. Kh1 {[%clk 00:06:01]} {[%emt
00:03:22]} Rac8 {[%clk 00:06:13]} {[%emt 00:00:58]} 19. f6 {[%clk 00:05:28]}
{[%emt 00:00:38]} gxf6 {[%clk 00:05:30]} {[%emt 00:00:48]} 20. Qe1 {[%clk
00:03:55]} {[%emt 00:01:38]} Kh8 {[%clk 00:05:04]} {[%emt 00:00:30]} 21. Ne4
{[%clk 00:03:39]} {[%emt 00:00:22]} Bc6 {[%clk 00:03:27]} {[%emt 00:01:42]} 22.
Nxf6 {[%clk 00:03:06]} {[%emt 00:00:39]} Bxf6 {[%clk 00:01:04]} {[%emt
00:02:27]} 23. Rxf6 {[%clk 00:03:10]} {[%emt 00:00:02]} Rg8 {[%clk 00:01:08]}
24. Rf2 {[%clk 00:02:18]} {[%emt 00:00:58]} Rg7 {[%clk 00:00:45]} {[%emt
00:00:28]} 25. Bd4 {[%emt 00:00:19]} Rcg8 {[%clk 00:00:27]} {[%emt 00:00:20]}
26. Bf1 {[%clk 00:02:09]} {[%emt 00:00:02]} f5 {[%clk 00:00:15]} {[%emt
00:00:17]} 27. c5 {[%clk 00:01:46]} {[%emt 00:00:28]} Be4 {[%clk 00:00:19]} 28.
cxd6 Qxd6 {[%clk 00:00:23]} 29. Qc3 {[%clk 00:01:53]} {[%emt 00:00:02]} Ng4
{[%clk 00:00:14]} {[%emt 00:00:14]} 30. Bxg7+ {[%clk 00:01:56]} {[%emt
00:00:02]} Rxg7 {[%clk 00:00:18]} 31. Qc8+ {[%clk 00:01:49]} {[%emt 00:00:12]}
Rg8 {[%clk 00:00:21]} {[%emt 00:00:02]} 32. Qc3+ {[%clk 00:01:53]} Rg7 {[%clk
00:00:17]} {[%emt 00:00:10]} 33. Qc8+ {[%clk 00:01:57]} Rg8 {[%clk 00:00:18]}
{[%emt 00:00:04]} 34. Qc3+ {[%emt 00:00:03]} e5 {[%emt 00:00:13]} 35. Rd2 Qh6
36. h3 {[%emt 00:00:03]} 1/2-1/2

[Event "Pervenstvo PFO 2023_Y19_Rapid"]
[Site "Samara region, Russia"]
[Date "2023.11.11"]
[Round "4.3"]
[White "Konstantinov, Nikita"]
[Black "Ivanov, Matvei"]
[Result "1-0"]
[TimeControl "10:5"]
[WhiteFideId "44165250"]
[BlackFideId "54131987"]
[WhiteElo "2074"]
[BlackElo "1918"]

1. e4 {[%clk 00:10:09]} c6 {[%clk 00:10:10]} 2. d4 {[%clk 00:10:14]} d5 {[%clk
00:10:14]} 3. Nd2 {[%clk 00:10:18]} dxe4 {[%clk 00:10:18]} {[%emt 00:00:03]} 4.
Nxe4 {[%clk 00:10:22]} Nf6 {[%clk 00:10:21]} {[%emt 00:00:02]} 5. Nxf6+ {[%clk
00:10:24]} {[%emt 00:00:03]} exf6 {[%clk 00:10:25]} {[%emt 00:00:01]} 6. Nf3
{[%clk 00:10:28]} Bd6 {[%clk 00:10:26]} {[%emt 00:00:04]} 7. Be2 {[%clk
00:10:32]} Na6 {[%clk 00:10:30]} {[%emt 00:00:01]} 8. O-O {[%clk 00:10:35]}
{[%emt 00:00:02]} Nc7 {[%clk 00:10:34]} 9. c4 {[%clk 00:10:38]} {[%emt
00:00:03]} O-O {[%clk 00:10:32]} {[%emt 00:00:07]} 10. Be3 {[%clk 00:10:42]}
Ne6 {[%clk 00:10:31]} {[%emt 00:00:05]} 11. Qc2 {[%clk 00:10:20]} {[%emt
00:00:27]} Nf4 {[%clk 00:09:48]} {[%emt 00:00:48]} 12. Bxf4 {[%clk 00:10:13]}
{[%emt 00:00:13]} Bxf4 {[%clk 00:09:52]} 13. Bd3 {[%clk 00:10:16]} g6 {[%clk
00:09:53]} {[%emt 00:00:05]} 14. h3 {[%clk 00:10:15]} {[%emt 00:00:07]} Be6
{[%clk 00:09:32]} {[%emt 00:00:26]} 15. Rfe1 {[%clk 00:09:53]} {[%emt
00:00:26]} Rc8 {[%clk 00:08:04]} {[%emt 00:01:33]} 16. Rad1 {[%clk 00:09:38]}
{[%emt 00:00:21]} Re8 {[%clk 00:07:04]} {[%emt 00:01:05]} 17. Be4 {[%clk
00:07:50]} {[%emt 00:01:53]} f5 {[%clk 00:06:29]} {[%emt 00:00:41]} 18. Bd3
{[%clk 00:07:15]} {[%emt 00:00:39]} Bb8 {[%clk 00:04:48]} {[%emt 00:01:46]} 19.
Qc1 {[%clk 00:05:50]} {[%emt 00:01:31]} Qd6 {[%clk 00:02:52]} {[%emt 00:02:00]}
20. Qh6 {[%clk 00:05:26]} {[%emt 00:00:29]} Qf8 {[%clk 00:01:31]} {[%emt
00:01:27]} 21. Qc1 {[%clk 00:05:20]} {[%emt 00:00:11]} Qd6 {[%clk 00:01:32]}
{[%emt 00:00:03]} 22. b3 {[%clk 00:05:15]} {[%emt 00:00:10]} a6 {[%clk
00:01:19]} {[%emt 00:00:19]} 23. Re2 {[%clk 00:05:08]} {[%emt 00:00:12]} Bd7
{[%clk 00:00:47]} {[%emt 00:00:37]} 24. Rde1 {[%clk 00:02:41]} {[%emt
00:02:32]} Rxe2 {[%clk 00:00:51]} {[%emt 00:00:01]} 25. Rxe2 {[%clk 00:02:45]}
Re8 {[%clk 00:00:55]} 26. Rxe8+ {[%clk 00:02:38]} {[%emt 00:00:13]} Bxe8 {[%clk
00:01:00]} 27. Qe3 {[%clk 00:02:15]} {[%emt 00:00:26]} Qe6 {[%clk 00:00:41]}
{[%emt 00:00:24]} 28. Qd2 {[%clk 00:01:51]} {[%emt 00:00:29]} Qd6 {[%clk
00:00:15]} {[%emt 00:00:31]} 29. c5 {[%clk 00:01:32]} {[%emt 00:00:24]} Qe7
{[%clk 00:00:13]} {[%emt 00:00:06]} 30. Bc4 {[%clk 00:01:28]} {[%emt 00:00:10]}
Bd7 {[%clk 00:00:15]} {[%emt 00:00:04]} 31. b4 {[%clk 00:00:53]} {[%emt
00:00:40]} Be6 {[%clk 00:00:13]} {[%emt 00:00:07]} 32. d5 {[%clk 00:00:52]}
{[%emt 00:00:06]} cxd5 {[%clk 00:00:15]} {[%emt 00:00:03]} 33. Bxd5 {[%clk
00:00:56]} Bxd5 {[%clk 00:00:09]} {[%emt 00:00:10]} 34. Qxd5 {[%clk 00:01:00]}
Kg7 {[%clk 00:00:11]} {[%emt 00:00:03]} 35. Kf1 {[%clk 00:00:51]} {[%emt
00:00:14]} Qc7 {[%clk 00:00:08]} {[%emt 00:00:09]} 36. g3 {[%clk 00:00:43]}
{[%emt 00:00:13]} Qe7 {[%clk 00:00:11]} {[%emt 00:00:02]} 37. h4 {[%clk
00:00:43]} {[%emt 00:00:04]} Qc7 {[%clk 00:00:15]} {[%emt 00:00:01]} 38. Ke2
{[%clk 00:00:39]} {[%emt 00:00:09]} Qe7+ {[%clk 00:00:17]} {[%emt 00:00:02]} 39.
Kd3 {[%clk 00:00:43]} Ba7 {[%clk 00:00:16]} {[%emt 00:00:06]} 40. Ne5 {[%clk
00:00:35]} {[%emt 00:00:13]} a5 {[%clk 00:00:15]} {[%emt 00:00:07]} 41. a3
{[%clk 00:00:35]} {[%emt 00:00:05]} axb4 {[%clk 00:00:19]} 42. axb4 {[%clk
00:00:39]} Bb8 {[%clk 00:00:21]} {[%emt 00:00:03]} 43. f4 {[%clk 00:00:25]}
{[%emt 00:00:18]} h6 {[%clk 00:00:16]} {[%emt 00:00:10]} 44. Kc4 {[%clk
00:00:19]} {[%emt 00:00:12]} Ba7 {[%clk 00:00:10]} {[%emt 00:00:11]} 45. Qd7
{[%clk 00:00:15]} {[%emt 00:00:08]} Qxd7 {[%clk 00:00:08]} {[%emt 00:00:08]} 46.
Nxd7 {[%clk 00:00:19]} g5 {[%clk 00:00:11]} {[%emt 00:00:01]} 47. hxg5 {[%clk
00:00:23]} hxg5 {[%clk 00:00:16]} 48. b5 {[%clk 00:00:22]} {[%emt 00:00:06]}
1-0

[Event "Pervenstvo PFO 2023_Y19_Rapid"]
[Site "Samara region, Russia"]
[Date "2023.11.11"]
[Round "4.4"]
[White "Siyalov, Mikhail"]
[Black "Mochalov, Dmitriy"]
[Result "1/2-1/2"]
[TimeControl "10:5"]
[WhiteFideId "24276359"]
[BlackFideId "44179634"]
[WhiteElo "1691"]
[BlackElo "2194"]

1. e4 {[%emt 00:00:05]} c6 {[%clk 00:10:06]} 2. d4 {[%clk 00:10:09]} {[%emt
00:00:04]} d5 {[%clk 00:10:10]} 3. Nd2 {[%clk 00:10:12]} {[%emt 00:00:01]} dxe4
{[%clk 00:10:13]} {[%emt 00:00:02]} 4. Nxe4 {[%clk 00:10:16]} {[%emt 00:00:02]}
Bf5 {[%clk 00:10:17]} {[%emt 00:00:01]} 5. Ng3 {[%clk 00:10:19]} {[%emt
00:00:01]} Bg6 {[%clk 00:10:21]} 6. Nf3 {[%clk 00:10:22]} {[%emt 00:00:04]} Nd7
{[%clk 00:10:24]} {[%emt 00:00:01]} 7. Bd3 {[%clk 00:10:25]} {[%emt 00:00:02]}
e6 {[%clk 00:10:28]} {[%emt 00:00:02]} 8. O-O {[%clk 00:10:27]} {[%emt
00:00:03]} Ngf6 {[%clk 00:10:31]} {[%emt 00:00:01]} 9. c3 {[%clk 00:10:29]}
{[%emt 00:00:03]} Be7 {[%clk 00:10:35]} {[%emt 00:00:02]} 10. Qc2 {[%clk
00:10:23]} {[%emt 00:00:11]} O-O {[%clk 00:10:38]} {[%emt 00:00:02]} 11. Bxg6
{[%clk 00:10:25]} {[%emt 00:00:02]} hxg6 {[%clk 00:10:42]} {[%emt 00:00:02]} 12.
Ne5 {[%clk 00:10:23]} {[%emt 00:00:08]} Rc8 {[%clk 00:10:43]} {[%emt 00:00:03]}
13. Nxd7 {[%clk 00:10:14]} {[%emt 00:00:13]} Qxd7 {[%clk 00:10:47]} {[%emt
00:00:02]} 14. Ne4 {[%clk 00:10:17]} {[%emt 00:00:02]} c5 {[%clk 00:10:42]}
{[%emt 00:00:10]} 15. Nxf6+ {[%clk 00:10:14]} {[%emt 00:00:08]} Bxf6 {[%clk
00:10:45]} {[%emt 00:00:02]} 16. dxc5 {[%clk 00:10:14]} {[%emt 00:00:05]} Rxc5
{[%clk 00:10:49]} 17. Be3 {[%clk 00:10:17]} {[%emt 00:00:02]} Rc6 {[%clk
00:10:47]} {[%emt 00:00:07]} 18. Rfd1 {[%clk 00:10:15]} {[%emt 00:00:07]} Qc7
{[%clk 00:10:50]} {[%emt 00:00:02]} 19. Rd3 {[%clk 00:10:17]} {[%emt 00:00:03]}
b5 {[%clk 00:10:54]} {[%emt 00:00:02]} 20. Qb3 {[%clk 00:10:11]} {[%emt
00:00:10]} a6 {[%clk 00:10:54]} {[%emt 00:00:06]} 21. Rad1 {[%clk 00:10:13]}
{[%emt 00:00:03]} Rc4 {[%clk 00:10:54]} {[%emt 00:00:05]} 22. Rd7 {[%clk
00:10:01]} {[%emt 00:00:16]} Qe5 {[%clk 00:10:54]} {[%emt 00:00:06]} 23. Bd4
{[%clk 00:09:53]} {[%emt 00:00:13]} Qf5 {[%clk 00:10:57]} 24. Bxf6 {[%clk
00:09:50]} {[%emt 00:00:08]} gxf6 {[%clk 00:11:01]} {[%emt 00:00:02]} 25. g3
{[%clk 00:09:29]} {[%emt 00:00:26]} Kg7 {[%clk 00:11:04]} {[%emt 00:00:02]} 26.
Qa3 {[%clk 00:09:09]} {[%emt 00:00:24]} Ra4 {[%clk 00:10:56]} {[%emt 00:00:14]}
27. Qe7 {[%clk 00:07:13]} {[%emt 00:02:01]} Re4 {[%clk 00:06:24]} {[%emt
00:04:36]} 28. Rd8 {[%clk 00:05:17]} {[%emt 00:02:02]} Rxd8 {[%clk 00:06:28]}
{[%emt 00:00:02]} 29. Rxd8 {[%clk 00:05:19]} {[%emt 00:00:02]} Re1+ {[%clk
00:05:42]} {[%emt 00:00:51]} 30. Kg2 {[%clk 00:05:22]} {[%emt 00:00:02]} Qe4+
{[%clk 00:05:45]} {[%emt 00:00:02]} 31. Kh3 {[%clk 00:05:19]} {[%emt 00:00:08]}
Qf5+ {[%clk 00:04:23]} {[%emt 00:01:28]} 32. Kg2 {[%clk 00:05:22]} {[%emt
00:00:02]} Qe4+ {[%clk 00:03:56]} {[%emt 00:00:31]} 33. Kh3 {[%clk 00:05:25]}
{[%emt 00:00:02]} g5 {[%clk 00:02:24]} {[%emt 00:01:37]} 34. Qf8+ {[%clk
00:03:23]} {[%emt 00:02:08]} Kg6 {[%clk 00:02:28]} 35. Qg8+ {[%clk 00:02:30]}
{[%emt 00:00:58]} Kf5 {[%clk 00:02:31]} {[%emt 00:00:02]} 36. Rd4 {[%clk
00:00:39]} {[%emt 00:01:55]} Qf3 {[%clk 00:01:35]} {[%emt 00:01:01]} 37. Qh7+
{[%clk 00:00:07]} {[%emt 00:00:38]} Ke5 {[%clk 00:01:37]} {[%emt 00:00:02]} 38.
Qxf7 {[%clk 00:00:09]} {[%emt 00:00:03]} Qxf2 {[%clk 00:01:00]} {[%emt
00:00:42]} 39. Qc7+ {[%clk 00:00:09]} {[%emt 00:00:05]} Kf5 {[%clk 00:01:04]}
{[%emt 00:00:02]} 40. Qh7+ {[%clk 00:00:08]} {[%emt 00:00:06]} Ke5 {[%clk
00:01:08]} {[%emt 00:00:01]} 41. Qc7+ {[%clk 00:00:08]} {[%emt 00:00:05]} Kf5
{[%clk 00:01:11]} {[%emt 00:00:01]} 1/2-1/2

[Event "Pervenstvo PFO 2023_Y19_Rapid"]
[Site "Samara region, Russia"]
[Date "2023.11.11"]
[Round "4.5"]
[White "Kurulev, Egor"]
[Black "Pukhov, Ivan"]
[Result "1-0"]
[TimeControl "10:5"]
[WhiteFideId "34187097"]
[BlackFideId "34301895"]
[WhiteElo "1332"]
[BlackElo "1955"]

1. e4 {[%clk 00:10:08]} {[%emt 00:00:01]} c5 {[%clk 00:10:09]} {[%emt
00:00:01]} 2. Nf3 {[%clk 00:10:12]} d6 {[%clk 00:10:12]} {[%emt 00:00:02]} 3.
c3 {[%clk 00:10:16]} {[%emt 00:00:01]} Nf6 {[%clk 00:10:09]} {[%emt 00:00:08]}
4. h3 {[%clk 00:10:19]} {[%emt 00:00:01]} g6 {[%clk 00:09:49]} {[%emt
00:00:26]} 5. Bb5+ {[%clk 00:10:09]} {[%emt 00:00:15]} Bd7 {[%clk 00:09:09]}
{[%emt 00:00:45]} 6. Bxd7+ {[%clk 00:09:58]} {[%emt 00:00:17]} Qxd7 {[%clk
00:09:04]} {[%emt 00:00:09]} 7. d3 {[%clk 00:10:00]} {[%emt 00:00:03]} Bg7
{[%clk 00:09:07]} {[%emt 00:00:02]} 8. O-O {[%clk 00:10:03]} {[%emt 00:00:02]}
O-O {[%clk 00:09:09]} {[%emt 00:00:03]} 9. Re1 {[%clk 00:10:00]} {[%emt
00:00:08]} Nc6 {[%clk 00:09:09]} {[%emt 00:00:05]} 10. d4 {[%clk 00:09:48]}
{[%emt 00:00:17]} cxd4 {[%clk 00:09:10]} {[%emt 00:00:03]} 11. cxd4 {[%clk
00:09:52]} {[%emt 00:00:02]} d5 {[%clk 00:09:10]} {[%emt 00:00:05]} 12. e5
{[%clk 00:09:50]} {[%emt 00:00:07]} Ne4 {[%clk 00:09:11]} {[%emt 00:00:04]} 13.
Nc3 {[%clk 00:09:46]} {[%emt 00:00:09]} Nxc3 {[%clk 00:06:58]} {[%emt
00:02:18]} 14. bxc3 {[%clk 00:09:48]} {[%emt 00:00:03]} Rac8 {[%clk 00:06:42]}
{[%emt 00:00:21]} 15. Ng5 {[%clk 00:08:55]} {[%emt 00:00:58]} Nd8 {[%clk
00:02:59]} {[%emt 00:03:48]} 16. Qd3 {[%clk 00:07:34]} {[%emt 00:01:26]} f6
{[%clk 00:02:28]} {[%emt 00:00:36]} 17. Nf3 {[%clk 00:07:17]} {[%emt 00:00:23]}
Ne6 {[%clk 00:01:55]} {[%emt 00:00:38]} 18. exf6 {[%clk 00:06:21]} {[%emt
00:01:01]} exf6 {[%clk 00:01:59]} 19. Ba3 {[%clk 00:06:19]} {[%emt 00:00:07]}
Rfe8 {[%clk 00:02:03]} 20. Rac1 {[%clk 00:05:44]} {[%emt 00:00:40]} Nf4 {[%clk
00:01:41]} {[%emt 00:00:27]} 21. Qf1 {[%clk 00:05:17]} {[%emt 00:00:32]} Bf8
{[%clk 00:00:37]} {[%emt 00:01:09]} 22. Bxf8 {[%clk 00:04:45]} {[%emt
00:00:37]} Rxf8 {[%clk 00:00:41]} {[%emt 00:00:02]} 23. c4 {[%clk 00:04:31]}
{[%emt 00:00:19]} dxc4 {[%clk 00:00:30]} {[%emt 00:00:16]} 24. Rxc4 {[%clk
00:04:34]} {[%emt 00:00:02]} Qd5 {[%clk 00:00:31]} {[%emt 00:00:04]} 25. Rxc8
{[%clk 00:04:07]} {[%emt 00:00:32]} Rxc8 {[%clk 00:00:35]} 26. Kh2 {[%clk
00:04:09]} {[%emt 00:00:04]} g5 {[%clk 00:00:16]} {[%emt 00:00:24]} 27. Re7
{[%clk 00:03:47]} {[%emt 00:00:27]} Qd6 {[%clk 00:00:12]} {[%emt 00:00:09]} 28.
Rxb7 {[%clk 00:03:28]} {[%emt 00:00:24]} a6 {[%clk 00:00:07]} {[%emt 00:00:10]}
29. g3 {[%clk 00:03:05]} {[%emt 00:00:28]} Qc6 {[%clk 00:00:09]} {[%emt
00:00:02]} 30. Qb1 {[%emt 00:00:17]} Qc2 {[%clk 00:00:06]} {[%emt 00:00:03]} 31.
Qxc2 {[%clk 00:02:38]} {[%emt 00:00:26]} Rxc2 {[%clk 00:00:10]} 32. gxf4 {[%clk
00:02:39]} {[%emt 00:00:03]} Rxf2+ {[%clk 00:00:09]} {[%emt 00:00:06]} 33. Kg3
{[%clk 00:02:42]} {[%emt 00:00:02]} Rxa2 {[%clk 00:00:13]} {[%emt 00:00:01]} 34.
fxg5 {[%clk 00:02:42]} {[%emt 00:00:05]} fxg5 {[%clk 00:00:17]} {[%emt
00:00:02]} 35. Nxg5 {[%clk 00:02:44]} {[%emt 00:00:03]} h6 {[%clk 00:00:13]}
{[%emt 00:00:09]} 36. Ne4 {[%clk 00:02:39]} {[%emt 00:00:09]} Ra4 {[%clk
00:00:06]} {[%emt 00:00:12]} 37. Rd7 {[%clk 00:02:43]} {[%emt 00:00:02]} a5
{[%clk 00:00:07]} {[%emt 00:00:04]} 38. Kf4 {[%clk 00:02:44]} {[%emt 00:00:03]}
Kf8 {[%clk 00:00:08]} {[%emt 00:00:05]} 39. Ke5 {[%clk 00:02:46]} {[%emt
00:00:02]} Ra3 {[%clk 00:00:09]} {[%emt 00:00:04]} 40. Ra7 {[%clk 00:02:24]}
{[%emt 00:00:27]} Rxh3 {[%clk 00:00:06]} {[%emt 00:00:12]} 41. Rxa5 {[%clk
00:01:32]} {[%emt 00:01:40]} Rh5+ {[%clk 00:00:09]} 42. Ke6 {[%clk 00:01:32]}
{[%emt 00:00:06]} Rxa5 {[%clk 00:00:12]} {[%emt 00:00:02]} 43. d5 {[%clk
00:01:34]} {[%emt 00:00:03]} h5 {[%clk 00:10:05]} {[%emt 00:00:12]} 1-0